fUST/lending_fUST_20250713
["ID","MTS","AMOUNT","RATE_DAILY","PERIOD"]
[371659936,1752381045042,-460.0,0.0001902,2]
[371659938,1752381045052,-460.0,0.0001902,2]
[371659941,1752381045062,-464.33038493,0.0001902,2]
[371659942,1752381045072,-1183.95,0.0001902,2]
[371659945,1752381045081,-464.05098235,0.0001902,2]
[371659947,1752381045091,-163.725809,0.00019022,2]
[371659948,1752381045101,-151.0,0.000191,2]
[371659950,1752381045110,-525.11524442,0.00019102,2]
[371659952,1752381045119,-163.725809,0.00019113,2]
[371659954,1752381045129,-502.00391603,0.00019172,2]
[371659956,1752381045139,-460.0,0.00019173,2]
[371659959,1752381045149,-460.0,0.00019173,2]
[371659960,1752381045158,-151.0,0.00019173,2]
[371659963,1752381045168,-467.49952648,0.00019173,2]
[371659965,1752381045178,-460.0,0.00019173,2]
[371659967,1752381045188,-460.0,0.00019173,2]
[371659968,1752381045197,-1882.52,0.00019173,2]
[371659971,1752381045207,-535.04,0.00019173,2]
[371659972,1752381045217,-460.0,0.00019173,2]
[371659974,1752381045226,-162.417509,0.00019173,2]
[371659976,1752381045236,-162.417509,0.00019173,2]
[371659979,1752381045246,-464.75538975,0.00019178,2]
[371659981,1752381045255,-280.16,0.000192,2]
[371659983,1752381045265,-163.725809,0.00019204,2]
[371659984,1752381045275,-207.4,0.0001923,2]
[371659986,1752381045285,-1159.48,0.00019292,2]
[371659989,1752381045299,-460.0,0.00019292,2]
[371659990,1752381045309,-460.0,0.00019292,2]
[371659992,1752381045319,-1032.33,0.00019292,2]
[371659994,1752381045328,-598.66,0.00019292,2]
[371659996,1752381045338,-470.14361108,0.00019292,2]
[371659999,1752381045348,-460.0,0.00019292,2]
[371660000,1752381045357,-525.9,0.00019292,2]
[371660002,1752381045367,-430.15,0.00019292,2]
[371660004,1752381045377,-460.0,0.00019292,2]
[371660006,1752381045387,-545.63128138,0.00019292,2]
[371660008,1752381045397,-569.0,0.00019292,2]
[371660010,1752381045406,-460.0,0.00019292,2]
[371660012,1752381045415,-460.0,0.00019293,2]
[371660014,1752381045425,-460.0,0.00019293,2]
[371660016,1752381045435,-460.0,0.00019293,2]
[371660018,1752381045445,-504.33546279,0.00019293,2]
[371660020,1752381045454,-442.50673327,0.00019293,2]
[371660022,1752381045464,-460.0,0.00019293,2]
[371660024,1752381045473,-460.0,0.00019293,2]
[371660026,1752381045483,-426.94456967,0.00019293,2]
[371660028,1752381045492,-446.71181951,0.00019293,2]
[371660031,1752381045502,-460.0,0.00019293,2]
[371660033,1752381045511,-733.22,0.00019293,2]
[371660035,1752381045523,-460.0,0.00019293,2]
[371660036,1752381045532,-460.0,0.00019293,2]
[371660039,1752381045542,-460.0,0.00019293,2]
[371660040,1752381045551,-460.0,0.00019293,2]
[371660042,1752381045561,-460.0,0.00019293,2]
[371660044,1752381045571,-460.0,0.00019293,2]
[371660046,1752381045580,-460.0,0.00019293,2]
[371660048,1752381045590,-460.0,0.00019293,2]
[371660051,1752381045599,-353.1357365,0.00019293,2]
[371660052,1752381045610,-493.32161427,0.00019293,2]
[371660054,1752381045619,-460.0,0.00019293,2]
[371660056,1752381045628,-460.0,0.00019293,2]
[371660058,1752381045639,-460.0,0.00019293,2]
[371660060,1752381045648,-523.76522729,0.00019293,2]
[371660063,1752381045658,-460.0,0.00019293,2]
[371660065,1752381045668,-460.0,0.00019293,2]
[371660066,1752381045677,-220.54098645,0.00019293,2]
[371660068,1752381045687,-460.0,0.00019293,2]
[371660070,1752381045697,-382.65225744,0.00019293,2]
[371660072,1752381045707,-460.0,0.00019293,2]
[371660074,1752381045716,-460.0,0.00019293,2]
[371660077,1752381045726,-460.0,0.00019293,2]
[371660078,1752381045735,-460.0,0.00019293,2]
[371660081,1752381045744,-460.0,0.00019293,2]
[371660082,1752381045754,-268.19603776,0.00019293,2]
[371660085,1752381045764,-460.0,0.00019293,2]
[371660086,1752381045775,-449.2866887,0.00019294,2]
[371660089,1752381045784,-460.0,0.00019294,2]
[371660090,1752381045794,-460.0,0.00019294,2]
[371660092,1752381045803,-460.0,0.00019294,2]
[371660095,1752381045813,-460.0,0.00019294,2]
[371660097,1752381045822,-460.0,0.00019294,2]
[371660099,1752381045832,-344.41009111,0.00019294,2]
[371660101,1752381045841,-460.0,0.00019294,2]
[371660103,1752381045851,-547.99645538,0.00019294,2]
[371660105,1752381045860,-463.17726318,0.00019294,2]
[371660107,1752381045871,-460.0,0.00019294,2]
[371660109,1752381045890,-463.85438531,0.00019294,2]
[371660110,1752381045901,-460.0,0.00019294,2]
[371660112,1752381045910,-460.0,0.00019294,2]
[371660114,1752381045920,-464.11446796,0.00019294,2]
[371660117,1752381045929,-555.42284444,0.00019294,2]
[371660119,1752381045941,-555.89589733,0.00019294,2]
[371660120,1752381045951,-159.96084277,0.00019294,2]
[371660122,1752381045960,-406.35111497,0.00019294,2]
[371660124,1752381045970,-460.0,0.00019294,2]
[371660127,1752381045979,-594.39234668,0.00019294,2]
[371660128,1752381045988,-304.90335182,0.00019294,2]
[371660130,1752381045998,-359.11428752,0.00019294,2]
[371660133,1752381046007,-460.0,0.00019294,2]
[371660134,1752381046017,-1610.1,0.00019294,2]
[371660136,1752381046026,-462.67026264,0.00019294,2]
[371660139,1752381046036,-460.0,0.00019294,2]
[371660141,1752381046045,-460.0,0.00019294,2]
[371660142,1752381046054,-460.0,0.00019294,2]
[371660144,1752381046063,-460.0,0.00019294,2]
[371660147,1752381046073,-460.0,0.00019294,2]
[371660150,1752381046082,-460.0,0.00019294,2]
[371660152,1752381046091,-460.0,0.00019294,2]
[371660155,1752381046100,-460.0,0.00019294,2]
[371660158,1752381046110,-162.417509,0.00019294,2]
[371660160,1752381046119,-552.32,0.00019294,2]
[371660162,1752381046129,-162.417509,0.00019294,2]
[371660164,1752381046138,-460.0,0.00019294,2]
[371660166,1752381046148,-1164.25,0.00019294,2]
[371660168,1752381046157,-460.0,0.00019294,2]
[371660171,1752381046167,-460.0,0.00019294,2]
[371660172,1752381046176,-460.0,0.00019294,2]
[371660174,1752381046186,-1183.95,0.00019294,2]
[371660176,1752381046196,-163.725809,0.00019295,2]
[371660178,1752381046205,-151.0,0.000193,2]
[371660181,1752381046214,-151.0,0.00019329,2]
[371660183,1752381046224,-733.22,0.00019329,2]
[371660184,1752381046234,-733.22,0.00019329,2]
[371660186,1752381046244,-733.22,0.00019329,2]
[371660188,1752381046253,-733.22,0.00019329,2]
[371660190,1752381046262,-733.22,0.00019329,2]
[371660192,1752381046271,-162.417509,0.00019329,2]
[371660195,1752381046282,-162.417509,0.00019329,2]
[371660196,1752381046292,-100000.0,0.00019329,2]
[371660198,1752381046306,-163.725809,0.00019386,2]
[371660201,1752381046315,-151.0,0.000194,2]
[371660202,1752381046324,-349.21344755,0.00019447,2]
[371660204,1752381046334,-460.0,0.00019447,2]
[371660206,1752381046345,-460.0,0.00019447,2]
[371660209,1752381046354,-1882.52,0.00019447,2]
[371660210,1752381046363,-535.04,0.00019447,2]
[371660212,1752381046374,-460.0,0.00019447,2]
[371660214,1752381046384,-163.725809,0.00019477,2]
[371660217,1752381046394,-425.069416,0.00019491,2]
[371660219,1752381046403,-322.56,0.00019562,2]
[371660221,1752381046412,-1159.48,0.00019566,2]
[371660222,1752381046422,-460.0,0.00019566,2]
[371660224,1752381046434,-460.0,0.00019566,2]
[371660226,1752381046443,-1032.33,0.00019566,2]
[371660228,1752381046452,-598.66,0.00019566,2]
[371660230,1752381046462,-460.0,0.00019566,2]
[371660233,1752381046471,-525.9,0.00019566,2]
[371660235,1752381046480,-460.0,0.00019566,2]
[371660236,1752381046490,-569.0,0.00019566,2]
[371660239,1752381046499,-460.0,0.00019566,2]
[371660241,1752381046509,-460.0,0.00019567,2]
[371660243,1752381046518,-460.0,0.00019567,2]
[371660245,1752381046527,-460.0,0.00019567,2]
[371660246,1752381046537,-460.0,0.00019567,2]
[371660248,1752381046547,-460.0,0.00019567,2]
[371660250,1752381046558,-460.0,0.00019567,2]
[371660253,1752381046568,-460.0,0.00019567,2]
[371660255,1752381046577,-460.0,0.00019567,2]
[371660256,1752381046586,-460.0,0.00019567,2]
[371660257,1752381046595,-460.0,0.00019567,2]
[371660258,1752381046604,-460.0,0.00019567,2]
[371660259,1752381046613,-460.0,0.00019567,2]
[371660260,1752381046622,-460.0,0.00019567,2]
[371660261,1752381046631,-460.0,0.00019567,2]
[371660262,1752381046640,-460.0,0.00019567,2]
[371660263,1752381046650,-460.0,0.00019567,2]
[371660264,1752381046659,-460.0,0.00019567,2]
[371660266,1752381046668,-460.0,0.00019567,2]
[371660268,1752381046677,-460.0,0.00019567,2]
[371660270,1752381046687,-460.0,0.00019567,2]
[371660272,1752381046696,-220.24104234,0.00019567,2]
[371660274,1752381046705,-466.39004785,0.00019568,2]
[371660276,1752381046715,-460.0,0.00019568,2]
[371660278,1752381046724,-460.0,0.00019568,2]
[371660280,1752381046733,-460.0,0.00019568,2]
[371660282,1752381046742,-460.0,0.00019568,2]
[371660284,1752381046751,-460.0,0.00019568,2]
[371660286,1752381046760,-460.0,0.00019568,2]
[371660287,1752381046769,-597.62802116,0.00019568,2]
[371660290,1752381046778,-460.0,0.00019568,2]
[371660291,1752381046787,-464.69430109,0.00019568,2]
[371660293,1752381046796,-1610.1,0.00019568,2]
[371660295,1752381046805,-460.0,0.00019568,2]
[371660297,1752381046814,-460.0,0.00019568,2]
[371660299,1752381046824,-460.0,0.00019568,2]
[371660301,1752381046833,-532.08,0.00019568,2]
[371660303,1752381046842,-460.0,0.00019568,2]
[371660305,1752381046851,-460.0,0.00019568,2]
[371660307,1752381046861,-460.0,0.00019568,2]
[371660309,1752381046870,-552.32,0.00019568,2]
[371660311,1752381046879,-460.0,0.00019568,2]
[371660323,1752381046889,-1164.25,0.00019568,2]
[371660325,1752381046993,-460.0,0.00019568,2]
[371660327,1752381047003,-460.0,0.00019568,2]
[371660330,1752381047013,-1183.95,0.00019568,2]
[371660332,1752381047022,-163.725809,0.00019568,2]
[371660334,1752381047032,-733.22,0.00019587,2]
[371660336,1752381047042,-151.0,0.00019588,2]
[371660338,1752381047051,-151.0,0.000196,2]
[371660340,1752381047060,-460.88777942,0.00019631,2]
[371660342,1752381047070,-460.96698292,0.00019631,2]
[371660344,1752381047079,-460.0,0.00019631,2]
[371660346,1752381047088,-500.0,0.00019631,2]
[371660348,1752381047098,-460.0,0.00019631,2]
[371660350,1752381047107,-460.0,0.00019631,2]
[371660352,1752381047117,-460.76180707,0.00019631,2]
[371660354,1752381047127,-461.94261851,0.00019631,2]
[371660356,1752381047136,-461.98512813,0.00019631,2]
[371660358,1752381047146,-460.0,0.00019631,2]
[371660360,1752381047155,-460.0,0.00019631,2]
[371660362,1752381047165,-43427.5947201,0.00019643,2]
[371660364,1752381047177,-163.725809,0.00019659,2]
[371660366,1752381047187,-500.0,0.00019673,2]
[371660368,1752381047197,-500.0,0.00019673,2]
[371660370,1752381047206,-733.22,0.00019683,2]
[371660372,1752381047215,-733.22,0.00019683,2]
[371660374,1752381047224,-733.22,0.00019683,2]
[371660376,1752381047233,-500.0,0.00019683,2]
[371660378,1752381047243,-705.13745441,0.00019683,2]
[371660380,1752381047252,-500.0,0.00019683,2]
[371660382,1752381047261,-705.13745441,0.00019683,2]
[371660384,1752381047271,-287.54515144,0.00019683,2]
[371660386,1752381047281,-705.13745441,0.00019683,2]
[371660388,1752381047291,-500.0,0.00019683,2]
[371660390,1752381047303,-705.13745441,0.00019683,2]
[371660392,1752381047312,-705.13745441,0.00019683,2]
[371660394,1752381047321,-500.0,0.00019683,2]
[371660396,1752381047332,-705.13745441,0.00019683,2]
[371660398,1752381047343,-500.0,0.00019683,2]
[371660400,1752381047352,-705.13745441,0.00019683,2]
[371660402,1752381047361,-500.0,0.00019683,2]
[371660404,1752381047371,-705.13745441,0.00019683,2]
[371660406,1752381047381,-705.13745441,0.00019683,2]
[371660408,1752381047391,-500.0,0.00019683,2]
[371660410,1752381047400,-705.13745441,0.00019683,2]
[371660412,1752381047409,-500.0,0.00019683,2]
[371660414,1752381047419,-705.13745441,0.00019683,2]
[371660416,1752381047428,-500.0,0.00019683,2]
[371660418,1752381047438,-705.13745441,0.00019683,2]
[371660420,1752381047447,-500.0,0.00019683,2]
[371660422,1752381047457,-705.13745441,0.00019683,2]
[371660424,1752381047466,-705.13745441,0.00019683,2]
[371660426,1752381047476,-705.13745441,0.00019683,2]
[371660428,1752381047485,-705.13745441,0.00019683,2]
[371660430,1752381047494,-705.13745441,0.00019683,2]
[371660432,1752381047504,-705.13745441,0.00019683,2]
[371660434,1752381047513,-705.13745441,0.00019683,2]
[371660436,1752381047523,-705.13745441,0.00019683,2]
[371660438,1752381047532,-500.0,0.00019683,2]
[371660440,1752381047541,-469.46523406,0.00019684,2]
[371660442,1752381047551,-460.0,0.00019684,2]
[371660444,1752381047560,-500.0,0.00019684,2]
[371660446,1752381047569,-500.0,0.00019684,2]
[371660448,1752381047580,-151.0,0.00019684,2]
[371660450,1752381047589,-151.0,0.00019684,2]
[371660453,1752381047599,-461.28739315,0.00019684,2]
[371660455,1752381047608,-151.0,0.00019684,2]
[371660457,1752381047617,-460.0,0.00019684,2]
[371660458,1752381047626,-460.0,0.00019684,2]
[371660460,1752381047635,-151.0,0.00019684,2]
[371660463,1752381047644,-460.0,0.00019684,2]
[371660464,1752381047653,-460.0,0.00019684,2]
[371660467,1752381047663,-460.0,0.00019684,2]
[371660469,1752381047673,-153.04124683,0.00019684,2]
[371660471,1752381047683,-460.0,0.00019684,2]
[371660472,1752381047692,-460.0,0.00019684,2]
[371660474,1752381047701,-460.0,0.00019684,2]
[371660476,1752381047710,-460.0,0.00019684,2]
[371660478,1752381047719,-460.0,0.00019684,2]
[371660481,1752381047728,-460.0,0.00019684,2]
[371660483,1752381047739,-460.0,0.00019684,2]
[371660485,1752381047748,-460.0,0.00019684,2]
[371660487,1752381047757,-460.0,0.00019684,2]
[371660489,1752381047767,-460.0,0.00019684,2]
[371660491,1752381047776,-460.0,0.00019684,2]
[371660493,1752381047785,-460.0,0.00019684,2]
[371660495,1752381047795,-460.0,0.00019684,2]
[371660497,1752381047805,-416.31751771,0.00019684,2]
[371660499,1752381047814,-460.0,0.00019684,2]
[371660501,1752381047824,-460.0,0.00019684,2]
[371660503,1752381047833,-460.0,0.00019684,2]
[371660505,1752381047842,-460.0,0.00019684,2]
[371660507,1752381047852,-461.82233734,0.00019684,2]
[371660509,1752381047861,-460.0,0.00019684,2]
[371660511,1752381047871,-460.0,0.00019684,2]
[371660513,1752381047880,-322.6075035,0.00019684,2]
[371660515,1752381047890,-435.22296729,0.00019684,2]
[371660517,1752381047899,-460.0,0.00019684,2]
[371660519,1752381047909,-460.0,0.00019684,2]
[371660521,1752381047918,-590.94,0.00019684,2]
[371660523,1752381047927,-460.0,0.00019684,2]
[371660525,1752381047936,-460.0,0.00019684,2]
[371660527,1752381047946,-460.0,0.00019684,2]
[371660529,1752381047955,-460.0,0.00019684,2]
[371660531,1752381047965,-460.0,0.00019684,2]
[371660533,1752381047973,-460.0,0.00019684,2]
[371660535,1752381047983,-197.03099886,0.00019684,2]
[371660537,1752381047992,-460.0,0.00019684,2]
[371660539,1752381048001,-151.0,0.00019684,2]
[371660541,1752381048011,-151.0,0.00019684,2]
[371660543,1752381048020,-151.0,0.00019684,2]
[371660545,1752381048029,-460.0,0.00019684,2]
[371660547,1752381048038,-460.0,0.00019684,2]
[371660549,1752381048048,-460.0,0.00019684,2]
[371660551,1752381048057,-460.0,0.00019684,2]
[371660553,1752381048066,-500.0,0.00019684,2]
[371660555,1752381048075,-460.0,0.00019684,2]
[371660557,1752381048085,-460.0,0.00019684,2]
[371660559,1752381048094,-460.0,0.00019684,2]
[371660561,1752381048104,-461.56457386,0.00019684,2]
[371660563,1752381048114,-460.0,0.00019684,2]
[371660565,1752381048123,-460.0,0.00019684,2]
[371660567,1752381048134,-460.0,0.00019684,2]
[371660569,1752381048143,-460.27318378,0.00019684,2]
[371660571,1752381048153,-462.20585541,0.00019684,2]
[371660573,1752381048163,-460.0,0.00019684,2]
[371660596,1752381048381,-460.0,0.00019684,2]
[371660598,1752381048391,-460.0,0.00019684,2]
[371660600,1752381048402,-460.0,0.00019684,2]
[371660602,1752381048411,-460.0,0.00019684,2]
[371660604,1752381048420,-460.0,0.00019684,2]
[371660606,1752381048429,-460.0,0.00019684,2]
[371660608,1752381048439,-302.19668117,0.00019684,2]
[371660610,1752381048448,-460.0,0.00019684,2]
[371660612,1752381048458,-460.0,0.00019684,2]
[371660614,1752381048468,-460.0,0.00019684,2]
[371660616,1752381048477,-460.0,0.00019684,2]
[371660618,1752381048487,-460.0,0.00019684,2]
[371660620,1752381048496,-460.0,0.00019684,2]
[371660622,1752381048506,-460.0,0.00019684,2]
[371660624,1752381048515,-460.0,0.00019684,2]
[371660626,1752381048524,-460.0,0.00019684,2]
[371660628,1752381048534,-500.0,0.00019685,2]
[371660630,1752381048543,-151.0,0.00019685,2]
[371660632,1752381048552,-151.0,0.00019685,2]
[371660634,1752381048562,-151.0,0.00019685,2]
[371660636,1752381048572,-733.22,0.00019685,2]
[371660638,1752381048581,-733.22,0.00019685,2]
[371660640,1752381048591,-733.22,0.00019685,2]
[371660642,1752381048600,-733.22,0.00019685,2]
[371660644,1752381048610,-733.22,0.00019685,2]
[371660646,1752381048620,-733.22,0.00019685,2]
[371660648,1752381048629,-733.22,0.00019685,2]
[371660650,1752381048638,-733.22,0.00019685,2]
[371660652,1752381048647,-733.43249046,0.00019685,2]
[371660654,1752381048657,-500.0,0.00019685,2]
[371660656,1752381048667,-166.7,0.00019686,2]
[371660659,1752381048678,-461.41627627,0.00019686,2]
[371660661,1752381048687,-460.0,0.00019686,2]
[371660663,1752381048696,-151.0,0.00019686,2]
[371660664,1752381048705,-151.0,0.00019686,2]
[371660667,1752381048715,-151.0,0.00019686,2]
[371660669,1752381048725,-151.0,0.00019686,2]
[371660671,1752381048734,-151.0,0.00019686,2]
[371660673,1752381048743,-209.778707,0.00019686,2]
[371660674,1752381048752,-462.44967919,0.00019686,2]
[371660676,1752381048761,-462.66188419,0.00019686,2]
[371660679,1752381048771,-462.54536904,0.00019686,2]
[371660680,1752381048781,-466.79425408,0.00019686,2]
[371660683,1752381048790,-462.86731609,0.00019686,2]
[371660684,1752381048800,-460.0,0.00019686,2]
[371660686,1752381048810,-460.0,0.00019686,2]
[371660689,1752381048820,-200.08594791,0.00019686,2]
[371660691,1752381048829,-460.0,0.00019686,2]
[371660693,1752381048839,-460.0,0.00019686,2]
[371660695,1752381048849,-462.36846764,0.00019686,2]
[371660697,1752381048858,-460.0,0.00019686,2]
[371660699,1752381048868,-460.0,0.00019686,2]
[371660701,1752381048879,-461.78491471,0.00019686,2]
[371660703,1752381048890,-151.0,0.00019686,2]
[371660704,1752381048901,-151.0,0.00019686,2]
[371660707,1752381048911,-151.0,0.00019686,2]
[371660709,1752381048921,-92.58846476,0.00019686,2]
[371660732,1752381049134,-183.46998224,0.00019686,2]
[371660734,1752381049144,-253.46246032,0.00019686,2]
[371660736,1752381049155,-460.0,0.00019686,2]
[371660738,1752381049164,-460.0,0.00019686,2]
[371660740,1752381049174,-151.0,0.00019686,2]
[371660742,1752381049185,-255.24018,0.00019686,2]
[371660744,1752381049194,-460.0,0.00019686,2]
[371660746,1752381049204,-462.9070373,0.00019686,2]
[371660748,1752381049214,-460.0,0.00019686,2]
[371660750,1752381049223,-460.0,0.00019686,2]
[371660752,1752381049234,-461.28184815,0.00019686,2]
[371660754,1752381049243,-460.91403329,0.00019686,2]
[371660756,1752381049252,-460.0,0.00019686,2]
[371660758,1752381049262,-460.0,0.00019686,2]
[371660760,1752381049272,-460.0,0.00019686,2]
[371660762,1752381049282,-460.0,0.00019686,2]
[371660764,1752381049293,-460.0,0.00019686,2]
[371660766,1752381049305,-460.0,0.00019686,2]
[371660768,1752381049314,-500.0,0.00019686,2]
[371660770,1752381049323,-460.0,0.00019686,2]
[371660773,1752381049333,-463.2952018,0.00019686,2]
[371660775,1752381049342,-460.0,0.00019686,2]
[371660777,1752381049351,-460.0,0.00019686,2]
[371660779,1752381049361,-460.0,0.00019686,2]
[371660781,1752381049372,-460.0,0.00019686,2]
[371660783,1752381049382,-460.0,0.00019686,2]
[371660785,1752381049391,-460.0,0.00019686,2]
[371660787,1752381049401,-460.0,0.00019686,2]
[371660789,1752381049411,-460.96009603,0.00019686,2]
[371660791,1752381049420,-609.90898003,0.00019686,2]
[371660793,1752381049429,-460.0,0.00019686,2]
[371660795,1752381049438,-460.0,0.00019686,2]
[371660797,1752381049447,-460.0,0.00019686,2]
[371660799,1752381049458,-460.89673215,0.00019686,2]
[371660801,1752381049468,-460.0,0.00019686,2]
[371660803,1752381049478,-463.04917115,0.00019686,2]
[371660805,1752381049488,-176.363133,0.00019686,2]
[371660807,1752381049498,-460.0,0.00019686,2]
[371660809,1752381049507,-460.0,0.00019686,2]
[371660811,1752381049517,-460.0,0.00019686,2]
[371660813,1752381049526,-178.12527358,0.00019686,2]
[371660815,1752381049535,-460.0,0.00019686,2]
[371660817,1752381049544,-460.0,0.00019686,2]
[371660819,1752381049554,-460.0,0.00019686,2]
[371660821,1752381049563,-595.18228056,0.00019686,2]
[371660823,1752381049572,-460.0,0.00019686,2]
[371660825,1752381049582,-460.0,0.00019686,2]
[371660827,1752381049591,-460.0,0.00019686,2]
[371660829,1752381049600,-460.0,0.00019686,2]
[371660831,1752381049610,-460.0,0.00019686,2]
[371660833,1752381049619,-460.0,0.00019686,2]
[371660835,1752381049628,-460.0,0.00019686,2]
[371660837,1752381049637,-460.0,0.00019686,2]
[371660839,1752381049647,-460.0,0.00019686,2]
[371660841,1752381049656,-460.0,0.00019686,2]
[371660843,1752381049666,-573.3312053,0.00019686,2]
[371660846,1752381049678,-460.0,0.00019686,2]
[371660848,1752381049688,-460.0,0.00019686,2]
[371660850,1752381049698,-460.0,0.00019686,2]
[371660852,1752381049708,-460.0,0.00019686,2]
[371660854,1752381049717,-460.0,0.00019686,2]
[371660856,1752381049727,-460.0,0.00019686,2]
[371660858,1752381049736,-460.0,0.00019686,2]
[371660860,1752381049746,-4893.2812965,0.00019686,2]
[371660862,1752381049756,-500.0,0.00019687,2]
[371660864,1752381049765,-500.0,0.00019687,2]
[371660866,1752381049775,-151.0,0.00019688,2]
[371660868,1752381049783,-6142.41734853,0.000197,2]
[371660870,1752381049796,-4008.75265147,0.000197,2]
[371660872,1752381049806,-460.0,0.00019721,2]
[371660874,1752381049815,-460.0,0.00019721,2]
[371660876,1752381049825,-1882.52,0.00019721,2]
[371660878,1752381049834,-535.04,0.00019721,2]
[371660880,1752381049844,-460.0,0.00019721,2]
[371660882,1752381049854,-163.725809,0.0001975,2]
[371660884,1752381049864,-507.80797874,0.00019773,2]
[371660886,1752381049873,-515.0695342,0.00019784,2]
[371660888,1752381049883,-151.0,0.00019785,2]
[371660890,1752381049892,-193.293069,0.00019785,2]
[371660892,1752381049902,-193.293069,0.00019785,2]
[371660894,1752381049912,-151.0,0.00019785,2]
[371660896,1752381049922,-151.0,0.00019785,2]
[371660898,1752381049932,-151.0,0.00019785,2]
[371660901,1752381049942,-247.206905,0.00019785,2]
[371660903,1752381049952,-339.675967,0.00019785,2]
[371660905,1752381049961,-339.675967,0.00019785,2]
[371660907,1752381049971,-460.0,0.00019785,2]
[371660909,1752381049981,-151.0,0.00019785,2]
[371660911,1752381049990,-460.79195559,0.00019785,2]
[371660913,1752381049999,-460.0,0.00019785,2]
[371660914,1752381050009,-151.326127,0.00019786,2]
[371660917,1752381050018,-193.293069,0.00019786,2]
[371660919,1752381050027,-193.293069,0.00019786,2]
[371660921,1752381050037,-151.0,0.00019786,2]
[371660922,1752381050046,-151.0,0.00019786,2]
[371660925,1752381050056,-151.0,0.00019786,2]
[371660927,1752381050065,-151.0,0.00019786,2]
[371660928,1752381050075,-339.675967,0.00019786,2]
[371660931,1752381050084,-339.675967,0.00019786,2]
[371660933,1752381050094,-151.0,0.00019786,2]
[371660935,1752381050104,-460.0,0.00019786,2]
[371660937,1752381050113,-460.0,0.00019786,2]
[371660939,1752381050123,-460.0,0.00019786,2]
[371660941,1752381050132,-460.0,0.00019786,2]
[371660943,1752381050142,-460.0,0.00019786,2]
[371660945,1752381050152,-460.0,0.00019786,2]
[371660947,1752381050162,-460.0,0.00019786,2]
[371660949,1752381050171,-460.0,0.00019786,2]
[371660951,1752381050181,-460.0,0.00019786,2]
[371660953,1752381050190,-464.02235425,0.00019786,2]
[371660955,1752381050199,-151.0,0.00019787,2]
[371660957,1752381050209,-151.0,0.00019787,2]
[371660959,1752381050218,-151.0,0.00019787,2]
[371660961,1752381050227,-151.0,0.00019787,2]
[371660963,1752381050237,-1552.65632512,0.00019788,2]
[371660965,1752381050247,-1035.10421674,0.00019788,2]
[371660967,1752381050256,-1035.10421674,0.00019788,2]
[371660969,1752381050266,-151.0,0.000198,2]
[371660971,1752381050275,-420.0,0.00019824,2]
[371660973,1752381050285,-1159.48,0.0001984,2]
[371660975,1752381050297,-470.58326923,0.0001984,2]
[371660977,1752381050308,-460.0,0.0001984,2]
[371660979,1752381050317,-1032.33,0.0001984,2]
[371660981,1752381050328,-598.66,0.0001984,2]
[371660983,1752381050340,-460.0,0.0001984,2]
[371660985,1752381050349,-525.9,0.0001984,2]
[371660987,1752381050359,-460.0,0.0001984,2]